[Event "1st Bangalore GM-Open-A 2024"]
[Site "Bangalore"]
[Date "2024.01.25"]
[Round "9.15"]
[White "Muthaiah AL"]
[Black "Moksh Amit Doshi"]
[Result "1/2-1/2"]
[ECO "D02"]
[WhiteElo "2464"]
[BlackElo "2355"]
[Annotator "TA"]
[PlyCount "86"]
[EventDate "2024.01.20"]
[EventType "swiss"]
[EventCountry "IND"]
[SourceTitle "playchess.com"]
[Source "ChessBase"]
[SourceQuality "1"]
[TimeControl "5400+30"]

{[%evp 9,86,6,16,0,7,1,16,2,0,0,2,-13,0,-6,31,23,38,2,32,0,0,16,16,0,0,-8,-14,-25,0,-10,0,-14,0,0,0,4,24,0,0,0,0,0,0,0,0,0,0,0,0,0,0,-31,-31,-46,-34,-36,-37,-41,-29,-25,0,-32,0,0,0,0,0,0,0,0,0,0,0,0,0,0,0,0,0]} 1. d4 {[%emt 0:00:22]} Nf6 {[%emt 0:06:26]} 2. Bf4 {[%emt 0:00:23]} d5 {[%emt 0:00:08]} 3. e3 {[%emt 0:00:18]} Bf5 {[%emt 0:00:10]} 4. Nf3 {[%emt 0:01:43]} e6 {[%emt 0:00:09]} 5. Nc3 {[%emt 0:00:19]} Bd6 {[%emt 0:05:13]} 6. Ne5 {[%emt 0:01:29]} Nbd7 {[%emt 0:02:26]} 7. Bd3 {[%emt 0:00:38]} Bg6 {[%emt 0:02:04]} 8. h4 {[%emt 0:18:52]} Bxd3 {[%emt 0:07:13]} 9. cxd3 {[%emt 0:00:36]} O-O {[%emt 0:02:01]} 10. h5 {[%emt 0:06:34]} h6 {[%emt 0:04:50]} 11. Qf3 {[%emt 0:05:06]} Bxe5 {[%emt 0:04:32]} 12. dxe5 {[%emt 0:00:17]} Nh7 {[%emt 0:00:09]} 13. O-O-O {[%emt 0:24:37]} f6 {[%emt 0:04:35]} 14. Qg4 {[%emt 0:17:37]} fxe5 {[%emt 0:04:41]} 15. Qxe6+ {[%emt 0:00:13]} (15. Bxh6 Qf6 (15... Rxf2 16. Qxg7#) 16. Bxg7 Qxg7 $17) 15... Kh8 {[%emt 0:00:07]} 16. Bg3 {[%emt 0:01:03]} (16. Bxe5 $5 Re8 (16... Rxf2 17. Nxd5 Nxe5 18. Qxe5 $11) 17. Bxg7+ Kxg7 18. Qxd5 $15) 16... c6 {[%emt 0:04:49]} 17. e4 {[%emt 0:00:09]} Ng5 {[%emt 0:08:04]} 18. Qg4 {[%emt 0:03:36]} Nf6 {[%emt 0:03:10]} 19. Qe2 {[%emt 0:00:09]} (19. Qh4 $5) 19... Re8 {[%emt 0:06:02]} 20. Qc2 {[%emt 0:06:41]} Qe7 {[%emt 0:05:25]} 21. Kb1 {[%emt 0:04:59]} Qf7 {[%emt 0:02:00]} 22. exd5 {[%emt 0:00:09]} Nxd5 {[%emt 0:05:45]} ({Much weaker is} 22... Nxh5 $6 23. Bh4 Nh7 (23... cxd5 $2 {loses.} 24. Bxg5 Qg6 25. Qe2 $18) 24. g4 $16) 23. Ne4 {[%emt 0:02:59]} Nxe4 {[%emt 0:03:45]} 24. dxe4 {[%emt 0:00:02]} Nf4 {[%emt 0:00:14]} 25. Bxf4 {[%emt 0:00:31]} exf4 {[%emt 0:00:06]} 26. f3 {[%emt 0:01:47]} Rad8 {[%emt 0:01:39]} 27. Qc5 {[%emt 0:00:24]} a6 {[%emt 0:01:10]} 28. Rd6 {[%emt 0:01:06]} Qe7 {[%emt 0:02:33]} 29. Rxd8 {[%emt 0:01:06]} Qxd8 $11 {[%emt 0:00:12][%mdl 4096] Endgame. KQR-KQR} 30. Kc2 {[%emt 0:00:12]} Qf6 {[%emt 0:01:46]} 31. Qc3 {[%emt 0:01:25]} Qg5 {[%emt 0:00:48]} 32. Qd2 {[%emt 0:00:10]} Rd8 {[%emt 0:00:12]} 33. Qe2 {[%emt 0:00:37]} Rd4 {[%emt 0:02:47]} 34. a3 {[%emt 0:00:29]} c5 {[%emt 0:00:50]} 35. Kb1 {[%emt 0:00:28]} Qd8 {[%emt 0:01:22]} 36. Kc1 {[%emt 0:00:35] Inhibits Rd2. The position is equal.} Qe8 {[%emt 0:01:21]} 37. e5 {[%emt 0:00:35] Black must now prevent e6.} Qe6 {[%emt 0:00:32]} 38. Rd1 {[%emt 0:00:12]} Rxd1+ {[%emt 0:01:00]} 39. Kxd1 {[%emt 0:00:08]} Qd5+ {[%emt 0:00:03]} 40. Kc2 {[%emt 0:00:52] [#] aiming for e6.} Kg8 $1 {[%emt 0:00:07]} 41. e6 {[%emt 0:00:37] Threatens to win with e7.} Kf8 {[%emt 0:00:06][%cal Of8e7]} 42. Qd3 {[%emt 0:00:37]} Qxe6 {[%emt 0:00:57]} 43. Qd8+ {[%emt 0:00:07]} Qe8 {[%emt 0:03:36] Weighted Error Value: White=0.07 (flawless) /Black=0.06 (flawless) .  Inaccurate:     	White=3     	Black=3      OK:         	White=14    	Black=23     Best:        	White=2     	---        Strong:       	---       	Black=1} 1/2-1/2

[Event "1st Bangalore GM-Open-A 2024"]
[Site "Bangalore"]
[Date "2024.01.25"]
[Round "9.17"]
[White "Nitish Belurkar"]
[Black "Srihari L"]
[Result "1-0"]
[ECO "E92"]
[WhiteElo "2435"]
[BlackElo "2288"]
[Annotator "TA"]
[PlyCount "125"]
[EventDate "2024.01.20"]
[EventType "swiss"]
[EventCountry "IND"]
[SourceTitle "playchess.com"]
[Source "ChessBase"]
[SourceQuality "1"]
[TimeControl "5400+30"]

{[%evp 34,125,0,0,0,-25,0,-27,0,-4,0,0,0,0,0,0,0,0,0,0,0,-26,-23,-2,-12,-15,-8,-37,32,27,31,29,20,20,15,21,20,24,72,79,172,176,163,170,172,172,170,88,237,112,230,222,286,108,295,277,280,256,258,262,249,256,250,235,247,237,243,249,316,244,251,216,263,263,399,262,370,367,896,868,692,520,2109,2066,6370,6460,5435,4700,5313,1542,29967,29969,29968,29967]} 1. d4 {[%emt 0:00:04]} Nf6 {[%emt 0:00:09]} 2. c4 {[%emt 0:00:05]} g6 {[%emt 0:00:12]} 3. Nc3 {[%emt 0:00:06]} Bg7 {[%emt 0:00:03]} 4. e4 {[%emt 0:00:04]} d6 {[%emt 0:00:04]} 5. Nf3 {[%emt 0:00:03]} O-O {[%emt 0:00:05]} 6. Be2 {[%emt 0:00:05]} e5 {[%emt 0:00:07]} 7. Be3 {[%emt 0:00:06]} exd4 {[%emt 0:03:16]} 8. Nxd4 {[%emt 0:00:07]} Re8 {[%emt 0:00:11]} 9. f3 {[%emt 0:00:06]} c6 {[%emt 0:00:23]} 10. Bf2 {[%emt 0:00:06]} d5 {[%emt 0:00:12]} 11. exd5 {[%emt 0:00:08]} cxd5 {[%emt 0:00:06]} 12. O-O {[%emt 0:00:06]} Nc6 {[%emt 0:02:19]} 13. c5 {[%emt 0:00:17]} Bf8 {[%emt 0:04:12] E92: King's Indian: Classical: 6 Be2 e5: 7 dxe5, 7 Be3 and Petrosian System without 7...Nbd7.} 14. Kh1 {[%emt 0:01:03]} a6 {[%emt 0:01:29]} 15. Nxc6 $146 {[%emt 0:09:40]} ({Predecessor:} 15. a3 Nh5 16. Qd2 Ng7 17. Rfd1 Ne6 18. Nxe6 Bxe6 19. b4 f5 20. Bf1 Bg7 21. Rab1 {0-1 Gavenavicius,K (1828)-Juknis,P (2167) Vilnius Elite op 2023 (4)}) 15... bxc6 {[%emt 0:00:14]} 16. Qa4 {[%emt 0:00:16]} Bd7 {[%emt 0:04:45]} 17. Rfe1 {[%emt 0:08:25]} Nh5 {[%emt 0:15:38]} 18. Bf1 {[%emt 0:01:53]} Ng7 {[%emt 0:05:29]} 19. Qc2 {[%emt 0:09:33]} Bf5 {[%emt 0:20:02]} 20. Qd2 {[%emt 0:01:11]} Rxe1 {[%emt 0:04:42]} 21. Rxe1 {[%emt 0:00:09]} h5 {[%emt 0:00:11]} 22. Na4 {[%emt 0:18:30]} a5 {[%emt 0:02:01]} 23. Nb6 {[%emt 0:01:12]} Ra7 {[%emt 0:00:36]} 24. Nc4 {[%emt 0:09:30]} Ra8 {[%emt 0:02:39]} 25. Nb6 {[%emt 0:00:54]} Ra7 {[%emt 0:00:07]} 26. Nc4 {[%emt 0:10:25]} Ra8 {[%emt 0:00:05]} 27. Nd6 {[%emt 0:02:31]} Bxd6 {[%emt 0:02:32]} 28. cxd6 {[%emt 0:00:31]} Qxd6 {[%emt 0:00:02]} 29. Bg3 {[%emt 0:05:34]} Qb4 {[%emt 0:05:06]} 30. Qg5 {[%emt 0:01:31]} Re8 {[%emt 0:05:19]} (30... Qxb2 31. Be5 Qb4 (31... Qxa2 32. Qf6 Kf8 33. Qxg7+ Ke7 34. Bf4+ Be6 35. Rxe6+ Kxe6 36. Qe5+ Kd7 37. Qc7+ Ke8 38. Bd6) 32. Qf6 $14) (30... Kh7 $15) 31. Rxe8+ $14 {[%emt 0:00:37]} Nxe8 {[%emt 0:00:05]} 32. Qd8 {[%emt 0:01:41]} Kf8 $1 {[%emt 0:01:53]} 33. a3 {[%emt 0:00:11]} Qc5 {[%emt 0:01:15]} 34. Be1 {[%emt 0:01:01]} Qc1 {[%emt 0:05:40]} 35. Qxa5 {[%emt 0:00:06]} d4 {[%emt 0:02:38]} (35... Nc7 $11) 36. Kg1 $16 {[%emt 0:02:49]} c5 {[%emt 0:05:25]} (36... Kg8 $16) 37. Bd2 $18 {[%emt 0:01:17]} Qc2 {[%emt 0:00:05]} 38. Bh6+ {[%emt 0:01:45]} Kg8 {[%emt 0:05:54]} 39. Qd8 {[%emt 0:02:55]} Qa4 {[%emt 0:00:01]} 40. Qe7 {[%emt 0:01:40]} (40. b3 $18 Qd7 41. Qxd7 Bxd7 42. Kf2) 40... Qc6 {[%emt 0:02:37]} (40... Ng7 $16) 41. Qf8+ $18 {[%emt 0:02:15]} Kh7 {[%emt 0:00:01] [#]} 42. Bf4 $1 {[%emt 0:00:01]} (42. Qxf7+ $2 Kxh6 43. Qg8 Nf6 44. Qh8+ Nh7 $19) 42... Be6 {[%emt 0:02:56]} 43. Qh6+ {[%emt 0:02:21]} Kg8 {[%emt 0:00:01]} 44. Be5 {[%emt 0:00:07]} f6 {[%emt 0:00:03]} 45. Qxg6+ {[%emt 0:00:06]} Kf8 {[%emt 0:00:05]} 46. Bxf6 {[%emt 0:01:46]} Bd5 {[%emt 0:00:04]} 47. Qh6+ {[%emt 0:00:11]} (47. Qxh5 Nxf6 48. Qe5 Kf7 $17) 47... Kf7 {[%emt 0:00:01]} 48. Bg5 $1 {[%emt 0:00:32]} (48. Qxh5+ Kxf6 49. b4 Ke6 50. Qh3+ Ke7 51. Qh7+ Kd6 $11) 48... Qxh6 {[%emt 0:00:56]} 49. Bxh6 {[%emt 0:00:01]} Nd6 {[%emt 0:00:05]} 50. Bf4 {[%emt 0:00:31]} Nc4 {[%emt 0:00:33]} 51. Bxc4 {[%emt 0:01:07]} Bxc4 {[%emt 0:00:03]} 52. Bd6 {[%emt 0:02:13]} d3 {[%emt 0:00:02]} 53. Bf4 $1 {[%emt 0:00:01]} (53. Bxc5 d2 54. Kh1 d1=Q+ (54... d1=R+ $2 55. Bg1 $19) 55. Bg1 Qc2 56. h4 Bf1 (56... Qxb2 {is a self mate.} 57. Kh2 Bf1 58. Kg3 Qe2 59. Kf4 Bxg2 60. Kg5 Qe5+ 61. Kh6 Qg7+ 62. Kxh5 Bxf3#) (56... Qxb2 {leads to mate.} 57. Kh2 Bf1 58. Kg3 Ke6 59. Bd4 Qxd4 60. a4 Qb2 61. a5 Kf5 62. Kh3 Qxg2#)) 53... Ke6 {[%emt 0:01:11]} (53... Kg6 {was called for.} 54. a4 Kf7) 54. Kf2 {[%emt 0:00:01]} Kd5 {[%emt 0:00:34]} (54... Bb5 $142 55. g4 hxg4 56. fxg4 Kd7) 55. g4 $18 {[%emt 0:01:15]} hxg4 $2 {[%emt 0:02:16]} (55... h4 56. Bd2 Kd6) 56. fxg4 $18 {[%emt 0:00:04]} Bb5 {[%emt 0:00:20]} 57. Bd2 {[%emt 0:01:33]} Kc4 {[%emt 0:00:23]} (57... Ke5 $142 58. Kf3 Be8) 58. b4 $18 {[%emt 0:01:11]} cxb4 {[%emt 0:00:36]} 59. axb4 {[%emt 0:00:01]} Bd7 {[%emt 0:00:43]} 60. Kf3 {[%emt 0:00:27]} Kb3 {[%emt 0:00:18]} 61. g5 {[%emt 0:00:43]} Kc2 {[%emt 0:00:49]} 62. Ke3 {[%emt 0:00:15]} Be8 {[%emt 0:00:30]} 63. h4 {[%emt 0:00:08]} 1-0

[Event "1st Bangalore GM-Open-A 2024"]
[Site "Bangalore"]
[Date "2024.01.25"]
[Round "9.18"]
[White "Mohammad Nubairshah Shaikh"]
[Black "Jaiveer Mahendru"]
[Result "1-0"]
[ECO "A30"]
[WhiteElo "2428"]
[BlackElo "2294"]
[Annotator "RC"]
[PlyCount "165"]
[EventDate "2024.01.20"]
[EventType "swiss"]
[EventCountry "IND"]
[SourceTitle "playchess.com"]
[Source "ChessBase"]
[SourceQuality "1"]
[TimeControl "5400+30"]

1. Nf3 {[%emt 0:05:08]} Nf6 {[%emt 0:00:04]} 2. c4 {[%emt 0:00:45]} c5 {[%emt 0:00:04]} 3. g3 {[%emt 0:00:15]} Nc6 {[%emt 0:00:14]} 4. Bg2 {[%emt 0:00:03]} d5 {[%emt 0:00:23]} 5. O-O {[%emt 0:00:08]} e5 {[%emt 0:11:55]} 6. d3 {[%emt 0:01:33]} Be7 {[%emt 0:02:37]} 7. cxd5 {[%emt 0:05:22]} Nxd5 {[%emt 0:00:04]} 8. Nc3 {[%emt 0:00:03]} Be6 {[%emt 0:08:56]} 9. Bd2 {[%emt 0:15:35]} O-O {[%emt 0:02:34]} 10. Rc1 {[%emt 0:00:02]} b6 {[%emt 0:25:43]} 11. a3 {[%emt 0:04:34]} Rc8 {[%emt 0:02:11]} 12. Qa4 {[%emt 0:06:53]} f6 {[%emt 0:12:20]} 13. b4 {[%emt 0:03:16]} Nxc3 {[%emt 0:07:46]} 14. Rxc3 {[%emt 0:06:15]} f5 {[%emt 0:07:25]} 15. bxc5 {[%emt 0:16:40]} Bxc5 {[%emt 0:02:00]} 16. Rfc1 {[%emt 0:02:30]} Nd4 {[%emt 0:08:30]} 17. Kf1 {[%emt 0:00:18]} Bd7 {[%emt 0:02:27]} 18. Qd1 {[%emt 0:00:41]} Nxf3 {[%emt 0:01:00]} 19. Bxf3 {[%emt 0:00:57]} Qe7 {[%emt 0:02:43]} 20. Be3 {[%emt 0:15:15]} Bxe3 {[%emt 0:00:30]} 21. Qb3+ {[%emt 0:00:02]} Be6 {[%emt 0:00:46]} 22. Bd5 {[%emt 0:00:01]} Rxc3 {[%emt 0:00:13]} 23. Bxe6+ {[%emt 0:00:05]} Kh8 {[%emt 0:00:04]} 24. Rxc3 {[%emt 0:00:12]} Bd4 {[%emt 0:00:05]} 25. Rc8 {[%emt 0:04:07]} f4 {[%emt 0:00:08]} 26. gxf4 {[%emt 0:01:06]} exf4 {[%emt 0:00:53]} 27. Rxf8+ {[%emt 0:08:05]} Qxf8 {[%emt 0:00:01]} 28. Qa4 {[%emt 0:00:01]} Bc5 {[%emt 0:02:11]} 29. Qxa7 {[%emt 0:00:06]} b5 {[%emt 0:00:40]} 30. Qb7 {[%emt 0:01:29]} Bxa3 {[%emt 0:00:13]} 31. Qxb5 {[%emt 0:00:09]} Qa8 {[%emt 0:00:43]} 32. Bd5 {[%emt 0:02:21]} Qc8 {[%emt 0:00:00]} 33. Bc4 {[%emt 0:00:32]} Bc5 {[%emt 0:00:58]} 34. Qb2 {[%emt 0:02:11]} Qa8 {[%emt 0:00:27]} 35. Kg1 {[%emt 0:00:18]} Qe8 {[%emt 0:00:38]} 36. Qb7 {[%emt 0:00:31]} h6 {[%emt 0:00:31]} 37. Qd5 {[%emt 0:00:08]} Bb6 {[%emt 0:00:28]} 38. Qf5 {[%emt 0:01:15]} Qb8 {[%emt 0:00:31]} 39. Bd5 {[%emt 0:00:10]} Bc7 {[%emt 0:00:29]} 40. Be4 {[%emt 0:00:11]} Kg8 {[%emt 0:00:23]} 41. Qe6+ {[%emt 0:00:42]} Kh8 {[%emt 0:00:01]} 42. Qg6 {[%emt 0:00:08]} Kg8 {[%emt 0:00:05]} 43. h3 {[%emt 0:01:14]} Be5 {[%emt 0:00:37]} 44. Qe6+ {[%emt 0:00:29]} Kh8 {[%emt 0:00:03]} 45. h4 {[%emt 0:00:08]} Bf6 {[%emt 0:01:49]} 46. h5 {[%emt 0:00:01]} Be5 {[%emt 0:00:33]} 47. Kg2 {[%emt 0:00:01]} Bc7 {[%emt 0:00:27]} 48. Kf3 {[%emt 0:01:47]} Qd8 {[%emt 0:00:16]} 49. Qf5 {[%emt 0:00:37]} Kg8 {[%emt 0:00:02]} 50. Qe6+ {[%emt 0:00:36]} Kh8 {[%emt 0:00:02]} 51. Qg6 {[%emt 0:00:31]} Kg8 {[%emt 0:00:01]} 52. Kg4 {[%emt 0:00:22]} Qc8+ {[%emt 0:00:47]} 53. Bf5 {[%emt 0:00:07]} Qd8 {[%emt 0:00:06]} 54. Kh3 {[%emt 0:00:50]} Qa8 {[%emt 0:01:03]} 55. Qe6+ {[%emt 0:00:06]} Kh8 {[%emt 0:00:17]} 56. Be4 {[%emt 0:00:10]} Qd8 {[%emt 0:00:19]} 57. Bc6 {[%emt 0:00:44]} Bd6 {[%emt 0:01:40]} 58. Qf5 {[%emt 0:00:58]} Bc7 {[%emt 0:00:26]} 59. Kg4 {[%emt 0:00:09]} Bb8 {[%emt 0:00:43]} 60. Qd5 {[%emt 0:00:52]} Qe7 {[%emt 0:00:22]} 61. Kf3 {[%emt 0:00:14]} Bc7 {[%emt 0:00:37]} 62. Bd7 {[%emt 0:00:47]} Qd8 {[%emt 0:00:26]} 63. Ke4 {[%emt 0:00:25]} Bb8 {[%emt 0:00:21]} 64. Qf7 {[%emt 0:00:17]} Bc7 {[%emt 0:00:51]} 65. d4 {[%emt 0:00:44]} Bb6 {[%emt 0:00:36]} 66. Qe6 {[%emt 0:00:42]} Ba7 {[%emt 0:00:21]} 67. Qd6 {[%emt 0:00:30]} Bb8 {[%emt 0:00:13]} 68. Qe6 {[%emt 0:00:12]} Ba7 {[%emt 0:00:11]} 69. Qf7 {[%emt 0:00:18]} Bb6 {[%emt 0:00:31]} 70. Kd3 {[%emt 0:00:04]} Ba7 {[%emt 0:00:43]} 71. e4 {[%emt 0:00:04]} fxe3 {[%emt 0:00:01]} 72. fxe3 {[%emt 0:00:01]} Qb8 {[%emt 0:00:24]} 73. Qe8+ {[%emt 0:01:29]} Qxe8 {[%emt 0:00:07]} 74. Bxe8 {[%emt 0:00:01]} Kg8 {[%emt 0:00:14]} 75. Bg6 {[%emt 0:00:21]} Kf8 {[%emt 0:00:01]} 76. e4 {[%emt 0:00:20]} Ke7 {[%emt 0:00:04]} 77. e5 {[%emt 0:00:02]} Ke6 {[%emt 0:00:05]} 78. Ke4 {[%emt 0:00:01]} Ke7 {[%emt 0:01:19]} 79. d5 {[%emt 0:00:18]} Bb8 {[%emt 0:00:50]} 80. Kf5 {[%emt 0:00:02]} Bc7 {[%emt 0:00:16]} 81. d6+ {[%emt 0:00:31]} Bxd6 {[%emt 0:00:05]} 82. exd6+ {[%emt 0:00:04]} Kxd6 {[%emt 0:00:04]} 83. Bf7 {[%emt 0:00:05]} 1-0

[Event "1st Bangalore GM-Open-A 2024"]
[Site "Bangalore"]
[Date "2024.01.25"]
[Round "9.19"]
[White "Tahbaz, Arash"]
[Black "Roy Chowdhury, Saptarshi"]
[Result "1-0"]
[ECO "A31"]
[WhiteElo "2425"]
[BlackElo "2233"]
[Annotator "TA"]
[PlyCount "63"]
[EventDate "2024.01.20"]
[EventType "swiss"]
[EventCountry "IND"]
[SourceTitle "playchess.com"]
[Source "ChessBase"]
[SourceQuality "1"]
[TimeControl "5400+30"]

{[%evp 15,63,30,28,5,21,16,29,0,0,-34,-3,-1,14,18,46,31,46,40,55,49,60,60,58,56,59,29,85,80,127,0,14,16,18,0,62,11,49,53,128,120,500,460,501,526,584,631,638,700,688,673]} 1. Nf3 {[%emt 0:00:23]} c5 {[%emt 0:00:20]} 2. c4 {[%emt 0:01:07]} Nc6 {[%emt 0:00:08]} 3. g3 {[%emt 0:00:06]} g6 {[%emt 0:00:21]} 4. Bg2 {[%emt 0:00:23]} Bg7 {[%emt 0:00:06]} 5. O-O {[%emt 0:00:06]} d6 {[%emt 0:00:04]} 6. Nc3 {[%emt 0:00:22]} Nf6 {[%emt 0:01:21]} 7. d4 {[%emt 0:00:19]} cxd4 {[%emt 0:00:07]} 8. Nxd4 {[%emt 0:00:05]} Bd7 {[%emt 0:00:04]} 9. e3 {[%emt 0:07:55]} Qc8 {[%emt 0:01:35]} 10. Re1 {[%emt 0:05:40]} h5 {[%emt 0:01:32]} 11. Nxc6 {[%emt 0:11:03] Weiß hat minimalen Vorteil.} bxc6 {[%emt 0:03:53]} 12. c5 {[%emt 0:00:37]} dxc5 {[%emt 0:06:07]} 13. e4 {[%emt 0:16:32]} Bg4 {[%emt 0:28:31]} 14. Qa4 {[%emt 0:05:41][%mdl 1024] Weiss hat Kompensation.} e5 {[%emt 0:04:24]} 15. Be3 {[%emt 0:03:55]} Nd7 {[%emt 0:01:58]} 16. Qc2 {[%emt 0:01:22]} O-O {[%emt 0:09:05]} 17. Na4 {[%emt 0:00:11]} Rd8 {[%emt 0:00:46]} 18. Rac1 {[%emt 0:04:05]} Rb8 {[%emt 0:02:52]} 19. b3 {[%emt 0:01:06]} (19. Nxc5 Nxc5 20. Bxc5 Bh6 $11) 19... Bf8 {[%emt 0:01:34]} 20. f4 {[%emt 0:13:46]} exf4 {[%emt 0:02:57]} (20... c4 $1 $11 {bleibt in der Remisbreite.}) 21. gxf4 $16 {[%emt 0:01:26][%cal Oh2h3]} c4 {[%emt 0:03:12]} 22. bxc4 {[%emt 0:05:40] Weiß steht aktiver.} (22. Qxc4 $16 {[%cal Oh2h3] Schwarz muss nun h3! beachten.} Be6 23. Qxc6) 22... Nf6 {[%emt 0:03:59]} (22... Ba3 $5) 23. f5 {[%emt 0:01:47] Droht h3 und aus.} Qc7 {[%emt 0:08:20]} 24. h3 {[%emt 0:08:46] [#] Qf2 wäre nun fies.} Rb4 {[%emt 0:08:34]} 25. Nc5 {[%emt 0:04:05]} (25. hxg4 Nxg4 26. Nc3 Nxe3 (26... Rxc4 $2 27. fxg6 Qg3 28. gxf7+ Kxf7 29. Qe2 $19) 27. Rxe3 Qb6 $19 (27... Rxc4 28. Rh3 $16)) (25. fxg6 $14 fxg6 26. Qf2) 25... Qe5 {[%emt 0:04:09]} 26. Qc3 {[%emt 0:02:01]} (26. Nd3 Rxd3 27. Qxd3 Qg3 $11) (26. Nb3 {mit weiteren Verwicklungen.} Bd6 27. Kf1 gxf5 28. Nd4) 26... Qxc3 {[%emt 0:01:30]} ({Günstiger ist} 26... Qg3 $1 $14 27. Bf2 (27. Qxb4 $2 {geht unter.} Bxh3 28. Re2 Ng4 $19) (27. Qxf6 $2 {zu gefräßig.} Rd2 $19) 27... Qxc3 28. Rxc3 Rb2) 27. Rxc3 {[%emt 0:00:01] Zielt auf fxg6 ab.} Bd1 $2 {[%emt 0:00:47][%mdl 8192] [#] Das kostet Schwarz die Partie.} (27... gxf5 $16 28. hxg4 f4) 28. e5 {[%emt 0:00:52][%csl LRc6,LRf6] Weiß steht klar auf Gewinn.} Nh7 {[%emt 0:00:50]} 29. fxg6 {[%emt 0:00:39]} fxg6 {[%emt 0:00:06]} 30. Ne6 {[%emt 0:01:22]} Rbb8 {[%emt 0:02:15][%cal Of8b4]} 31. Nxd8 {[%emt 0:00:06]} Rxd8 {[%emt 0:00:05]} 32. Bxc6 {[%emt 0:00:20] Gewichteter Fehlerwert: Weiß=0.16 (sehr präzise) /Schwarz=0.50.  Verlustzug:     	---       	Schwarz=1     Fehler:       	Weiß=2     	Schwarz=4     Ungenau:       	Weiß=2     	Schwarz=3     OK:         	Weiß=6     	Schwarz=3     Bester:       	Weiß=2     	---} 1-0

[Event "1st Bangalore GM-Open-A 2024"]
[Site "Bangalore"]
[Date "2024.01.25"]
[Round "9.20"]
[White "Omidi, Arya"]
[Black "Deepan Chakkravarthy J."]
[Result "0-1"]
[ECO "B80"]
[WhiteElo "2301"]
[BlackElo "2422"]
[Annotator "TA"]
[PlyCount "114"]
[EventDate "2024.01.20"]
[EventType "swiss"]
[EventCountry "IND"]
[SourceTitle "playchess.com"]
[Source "ChessBase"]
[SourceQuality "1"]
[TimeControl "5400+30"]

{[%evp 33,114,-19,-25,-27,-27,-31,-27,-27,-27,-32,-34,-20,0,0,55,55,57,-11,-16,-12,-7,-7,0,-25,-25,-25,-25,-30,-22,-22,-22,-37,-40,-37,-29,-37,-25,-45,-46,-45,-43,-108,-81,-310,-304,-305,-314,-347,-305,-508,-472,-562,-564,-544,-528,-556,-550,-559,-556,-755,-703,-705,-839,-2252,-7869,-3142,-108,-12849,-29942,-29949,-6219,-4686,-1958,-29969,-29970,-29968,-29970,-29952,-29956,-6156,-5999,-29972,-12220]} 1. e4 {[%emt 0:00:03]} c5 {[%emt 0:00:15]} 2. Nf3 {[%emt 0:00:06]} d6 {[%emt 0:00:03]} 3. d4 {[%emt 0:00:06]} cxd4 {[%emt 0:00:03]} 4. Nxd4 {[%emt 0:00:03]} Nf6 {[%emt 0:00:04]} 5. Nc3 {[%emt 0:00:07]} a6 {[%emt 0:00:02]} 6. Be3 {[%emt 0:01:33]} e6 {[%emt 0:01:15]} 7. f3 {[%emt 0:08:40]} b5 {[%emt 0:00:57]} 8. Qd2 {[%emt 0:04:17]} Nbd7 {[%emt 0:02:00]} 9. O-O-O {[%emt 0:03:36]} Bb7 {[%emt 0:02:16]} 10. Nb3 {[%emt 0:06:09] B80: Sicilian Scheveningen: 6 g3 and 6 Be3, including English Attack.} b4 {[%emt 0:03:37]} 11. Na4 {[%emt 0:18:49]} d5 {[%emt 0:36:45]} 12. Nac5 {[%emt 0:04:18]} Qc7 $146 {[%emt 0:00:22]} ({Predecessor:} 12... Nxc5 13. Bxc5 Bxc5 14. Nxc5 Qb6 15. Nxb7 Qxb7 16. exd5 Nxd5 17. Bc4 Rd8 18. Qg5 O-O 19. Bxd5 exd5 {1-0 Roesch,C-Lee,B (1732) Seattle Seafair op 2020}) 13. Nxb7 {[%emt 0:07:35]} Qxb7 {[%emt 0:00:08]} 14. exd5 {[%emt 0:01:43]} Nxd5 {[%emt 0:00:04]} 15. Bc4 {[%emt 0:01:29]} N7f6 {[%emt 0:10:03]} 16. Bg5 {[%emt 0:09:23]} Be7 {[%emt 0:02:52]} 17. Bxd5 {[%emt 0:04:24]} Nxd5 {[%emt 0:01:02]} 18. Bxe7 {[%emt 0:00:58]} Qxe7 {[%emt 0:09:14]} 19. Rhe1 {[%emt 0:00:03]} Rd8 $1 {[%emt 0:00:07]} 20. Nd4 {[%emt 0:01:57]} Qd7 {[%emt 0:02:36]} ({But not} 20... Qc7 $2 21. Rxe6+ Ne7 (21... fxe6 $2 {too greedy.} 22. Nxe6 Qxh2 23. Nxd8 $18) 22. Rxe7+ (22. Rxa6 O-O $18) 22... Kxe7 (22... Qxe7 $2 23. Re1 $18) 23. Qg5+ (23. Qxb4+ Kf6 $11) 23... Ke8 24. Qxg7 Qf4+ 25. Kb1 $18) 21. Qd3 {[%emt 0:11:42]} O-O {[%emt 0:00:15]} 22. Qxa6 {[%emt 0:00:39]} Ra8 {[%emt 0:03:18]} 23. Qc6 {[%emt 0:00:15]} Rfd8 {[%emt 0:09:57]} (23... Qxc6 $1 $11 24. Nxc6 Rxa2) 24. Qxd7 $14 {[%emt 0:03:14]} Rxd7 {[%emt 0:00:02]} 25. Kb1 {[%emt 0:00:58]} ({White should try} 25. Nc6 $1 $14 Rxa2 26. Kb1) 25... Rda7 $11 {[%emt 0:00:15]} 26. Nb3 {[%emt 0:01:24]} Rxa2 {[%emt 0:00:11]} 27. Rd4 {[%emt 0:00:30]} h5 {[%emt 0:02:04]} 28. f4 {[%emt 0:00:56]} g6 $1 {[%emt 0:00:10]} 29. g3 {[%emt 0:00:47]} Kg7 {[%emt 0:08:42]} 30. h3 {[%emt 0:00:03]} R2a6 {[%emt 0:02:16]} 31. g4 {[%emt 0:00:33]} h4 {[%emt 0:00:05]} 32. f5 {[%emt 0:01:30]} g5 $1 {[%emt 0:00:07]} 33. fxe6 {[%emt 0:00:59]} fxe6 {[%emt 0:00:23]} 34. Rf1 {[%emt 0:01:42]} Rc6 {[%emt 0:00:46]} 35. Rf2 {[%emt 0:01:01]} Rac8 {[%emt 0:00:20]} 36. Nc1 {[%emt 0:01:28]} Rc4 {[%emt 0:00:48]} 37. Rd3 {[%emt 0:03:37]} (37. Rxc4 $1 $15 Rxc4 38. Ka2) 37... Re4 {[%emt 0:01:00]} 38. Ne2 $2 {[%emt 0:00:55]} (38. Re2 $17 {was worth a try.} Rxe2 39. Nxe2) 38... Rf8 $19 {[%emt 0:00:07]} 39. Rxf8 {[%emt 0:01:31]} Kxf8 {[%emt 0:00:01]} 40. Rf3+ {[%emt 0:00:02]} Ke7 {[%emt 0:01:17]} 41. Nc1 $2 {[%emt 0:00:02]} (41. Rf2) 41... Rf4 $19 {[%emt 0:01:22]} 42. Rb3 {[%emt 0:00:51]} Rf1 {[%emt 0:00:08]} 43. c4 {[%emt 0:00:19]} bxc3 {[%emt 0:00:05]} 44. bxc3 {[%emt 0:00:04]} Nf4 {[%emt 0:00:33]} 45. Rb7+ {[%emt 0:01:16]} Kf6 {[%emt 0:00:56]} 46. c4 {[%emt 0:00:24]} Ne2 {[%emt 0:00:41]} 47. Kc2 {[%emt 0:00:07]} Rxc1+ {[%emt 0:00:33]} 48. Kd2 {[%emt 0:00:05]} Rxc4 {[%emt 0:00:04]} 49. Kxe2 {[%emt 0:00:07] [#]} Rc3 $1 {[%emt 0:00:03]} 50. Rb4 $2 {[%emt 0:00:48][%mdl 8192]} (50. Rb5 $17 Rxh3 51. Kf2) 50... Rxh3 $19 {[%emt 0:00:06]} 51. Re4 {[%emt 0:00:03]} Ra3 {[%emt 0:00:34]} 52. Kf2 {[%emt 0:00:02]} Rd3 {[%emt 0:01:16]} 53. Kg2 {[%emt 0:00:09]} e5 {[%emt 0:00:33]} 54. Ra4 {[%emt 0:00:04]} Ke6 {[%emt 0:00:04]} 55. Ra6+ {[%emt 0:00:30]} Kd5 {[%emt 0:00:08]} 56. Kf2 {[%emt 0:00:11]} Rd4 {[%emt 0:00:49]} 57. Ra5+ {[%emt 0:00:09]} Ke4 {[%emt 0:00:06]} 0-1